bitfinex-derivatives/quotes_BTCF0:USTF0_20260207
["timestamp","ask_amount","ask_price","bid_price","bid_amount"]
[1770471509215,0.0598,69112.0,69092.0,0.1482688]
[1770471509726,0.0598,69112.0,69096.0,0.014488]
[1770471510424,0.0598,69112.0,69099.0,0.014487]
[1770471511619,0.0598,69112.0,69096.0,0.014488]
[1770471512016,0.0598,69112.0,69092.0,0.1482688]
[1770471512214,0.64313333,69112.0,69092.0,0.1482688]
[1770471512422,0.64313333,69112.0,69077.0,0.93652]
[1770471512423,0.56861773,69110.0,69077.0,0.11898248]
[1770471512825,0.14681945,69130.0,69076.0,0.00013078]
[1770471512826,0.56861773,69108.0,69076.0,0.00013078]
[1770471513223,0.56861773,69106.0,69076.0,0.00013078]
[1770471513720,0.56861773,69104.0,69076.0,0.00013078]
[1770471514126,0.56861773,69102.0,69076.0,0.00013078]
[1770471514523,0.56861773,69100.0,69076.0,1e-08]
[1770471515025,0.56861773,69098.0,69051.0,0.1249247]
[1770471515225,0.56861773,69089.0,69055.0,0.014496]
[1770471515432,0.56861773,69089.0,69074.0,0.1430625]
[1770471515627,0.0598,69088.0,69074.0,0.1430625]
[1770471516132,0.56861773,69089.0,69074.0,0.1430625]
[1770471516133,0.0598,69087.0,69074.0,0.1430625]
[1770471516339,0.56109727,69085.0,69074.0,0.1430625]
[1770471516534,0.14681945,69110.0,69059.0,0.1249247]
[1770471516535,0.56109727,69083.0,69059.0,0.1249247]
[1770471517020,0.0598,69082.0,69060.0,0.014495]
[1770471517421,0.62089727,69081.0,69049.0,0.014497]
[1770471517720,0.56109727,69079.0,69049.0,0.014497]
[1770471517927,0.56109727,69077.0,69049.0,0.014497]
[1770471518131,0.00014903,69076.0,69049.0,0.014497]
[1770471518324,0.62089727,69076.0,69051.0,0.014497]
[1770471518524,0.56109727,69075.0,69051.0,0.014497]
[1770471518732,0.56109727,69075.0,69044.0,0.41200504]
[1770471518733,0.62089727,69075.0,69052.0,0.14468768]
[1770471518931,0.56109727,69073.0,69052.0,0.14468768]
[1770471519333,0.62089727,69072.0,69052.0,0.14468768]
[1770471519530,0.56109727,69072.0,69055.0,0.0002]
[1770471519731,0.56109727,69070.0,69055.0,0.0002]
[1770471520130,0.62089727,69069.0,69044.0,0.41200504]
[1770471520327,0.56109727,69067.0,69044.0,0.41200504]
[1770471520534,0.56109727,69066.0,69044.0,0.41200504]
[1770471520834,0.56109727,69077.0,69048.0,0.43267046]
[1770471521139,0.56109727,69075.0,69048.0,0.43267046]
[1770471521433,0.56109727,69075.0,69053.0,0.4376969]
[1770471521630,0.0598,69074.0,69053.0,0.4231999]
[1770471521832,0.62089727,69074.0,69052.0,0.14357171]
[1770471522029,0.6210463,69073.0,69052.0,0.14357171]
[1770471522227,0.00014903,69072.0,69052.0,0.14357171]
[1770471522428,0.56109727,69073.0,69052.0,0.14357171]
[1770471522626,0.05994903,69072.0,69052.0,0.14357171]
[1770471522835,0.00014903,69071.0,69052.0,0.14357171]
[1770471523032,0.0598,69071.0,69052.0,0.14357171]
[1770471523334,0.0598,69070.0,69052.0,0.14357171]
[1770471523536,0.56109727,69071.0,69052.0,0.14357171]
[1770471523732,0.14681945,69090.0,69052.0,0.14357171]
[1770471523733,0.56109727,69079.0,69053.0,0.4214522]
[1770471524124,0.0598,69078.0,69054.0,0.4359482]
[1770471524332,0.0598,69078.0,69059.0,0.014495]
[1770471524538,0.0598,69077.0,69059.0,0.4359472]
[1770471524731,0.56109727,69088.0,69059.0,0.4359472]
[1770471524932,0.0598,69087.0,69059.0,0.4214522]
[1770471525140,0.56109727,69104.0,69076.0,0.4389003]
[1770471525340,0.56109727,69104.0,69080.0,0.014491]
[1770471525729,0.56109727,69104.0,69080.0,0.4388993]
[1770471525930,0.56109727,69104.0,69082.0,0.014491]
[1770471525931,0.41358963,69104.0,69082.0,0.014491]
[1770471526134,0.56109727,69113.0,69082.0,0.5533427]
[1770471526334,0.56109727,69112.0,69082.0,0.5533427]
[1770471526533,0.14681945,69130.0,69082.0,0.5533427]
[1770471526534,0.56109727,69111.0,69082.0,0.5533427]
[1770471527134,0.56109727,69109.0,69082.0,0.5533427]
[1770471527330,0.56109727,69109.0,69084.0,0.01449]
[1770471527526,0.00012786,69108.0,69082.0,0.5388517]
[1770471527728,0.00014903,69107.0,69084.0,0.5388517]
[1770471527932,0.0001077,69106.0,69088.0,0.014489]
[1770471528128,0.56109727,69109.0,69088.0,0.014489]
[1770471528528,0.56109727,69109.0,69090.0,0.014489]
[1770471529132,0.56109727,69109.0,69058.0,0.5388517]
[1770471529336,0.56109727,69107.0,69058.0,0.5388517]
[1770471529535,0.56109727,69105.0,69048.0,0.5388517]
[1770471529735,0.56109727,69105.0,69052.0,0.15806871]
[1770471529938,0.56109727,69103.0,69055.0,0.014496]
[1770471530340,0.14681945,69110.0,69055.0,0.014496]
[1770471530341,0.56109727,69101.0,69055.0,0.014496]
[1770471530642,0.14681945,69110.0,69052.0,0.14357171]
[1770471530643,0.56109727,69099.0,69053.0,0.014497]
[1770471530937,0.56109727,69097.0,69053.0,0.014497]
[1770471531139,0.56109727,69095.0,69053.0,0.014497]
[1770471531345,0.56109727,69093.0,69053.0,0.014497]
[1770471531532,0.56109727,69091.0,69053.0,0.014497]
[1770471531732,0.56109727,69089.0,69053.0,0.014497]
[1770471531936,0.56109727,69087.0,69026.0,0.00012503]
[1770471532130,0.56109727,69069.0,69026.0,0.53897673]
[1770471532333,0.56109727,69067.0,69026.0,0.00012503]
[1770471532535,0.56109727,69065.0,69026.0,0.00012503]
[1770471532731,0.56109727,69063.0,69030.0,0.68223717]
[1770471532935,0.56109727,69061.0,69031.0,0.014501]
[1770471533538,0.56109727,69061.0,69031.0,0.5533527]
[1770471533936,0.56109727,69059.0,69031.0,0.5388517]
[1770471534134,0.56109727,69058.0,69031.0,0.5388517]
[1770471534341,0.56109727,69056.0,69030.0,0.14338547]
[1770471534541,0.56109727,69054.0,69030.0,0.14338547]
[1770471534740,0.56109727,69053.0,69030.0,0.14338547]
[1770471535140,0.57453077,69099.0,69030.0,0.14338547]
[1770471535141,0.56109727,69052.0,69030.0,0.14338547]
[1770471535837,0.56109727,69052.0,69026.0,0.01462703]
[1770471536031,0.56109727,69049.0,69000.0,0.014508]
[1770471536240,0.56109727,69029.0,68970.0,0.5388517]
[1770471536444,0.56109727,69009.0,68977.0,0.14803668]
[1770471536741,0.56109727,69009.0,68978.0,0.5388517]
[1770471536936,0.56109727,69009.0,68977.0,0.14803668]
[1770471536937,0.70791672,69020.0,68984.0,0.5388517]
[1770471537145,0.56109727,69039.0,68992.0,0.5388517]
[1770471537346,0.56109727,69037.0,68992.0,0.5388517]
[1770471537532,0.56109727,69035.0,68992.0,0.5388517]
[1770471537842,0.14681945,69040.0,68992.0,0.5388517]
[1770471537843,0.56109727,69034.0,68992.0,0.5388517]
[1770471538046,0.56109727,69033.0,68992.0,0.5388517]
[1770471538337,0.56109727,69019.0,68985.0,0.5388517]
[1770471539138,0.14681945,69040.0,68988.0,0.51349955]
[1770471539139,0.56109727,69039.0,68988.0,0.51349955]
[1770471539337,0.56109727,69019.0,68978.0,0.51349955]
[1770471539537,0.14681945,69020.0,68978.0,0.51349955]
[1770471539538,0.56109727,69017.0,68978.0,0.51349955]
[1770471539735,0.56109727,69017.0,68978.0,0.52801155]
[1770471540244,0.56109727,69015.0,68978.0,0.51349955]
[1770471540639,0.56109727,69026.0,68978.0,0.51349955]
[1770471540846,0.43087444,69068.0,68978.0,0.51349955]
[1770471540847,0.56109727,69025.0,68978.0,0.51349955]
[1770471541239,0.56109727,69024.0,68978.0,0.51349955]
[1770471541439,0.56109727,69023.0,68978.0,0.51349955]
[1770471541935,0.56109727,69021.0,68985.0,0.5388517]
[1770471542541,0.56109727,69020.0,68985.0,0.5388517]
[1770471543148,0.56109727,69019.0,68985.0,0.5388517]
[1770471543741,1.45171702,69070.0,69008.0,0.5388517]
[1770471543742,0.56109727,69041.0,69008.0,0.5388517]
[1770471544048,0.56109727,69069.0,69012.0,0.5388517]
[1770471544245,0.56109727,69069.0,69020.0,0.5388517]
[1770471544745,0.56109727,69069.0,69014.0,0.014505]
[1770471544746,0.56109727,69069.0,69038.0,0.5388517]
[1770471545149,0.14681945,69090.0,69038.0,0.5388517]
[1770471545344,0.56109727,69080.0,69038.0,0.5388517]
[1770471545539,0.14681945,69090.0,69041.0,0.5388517]
[1770471545540,0.56109727,69078.0,69041.0,0.5388517]
[1770471545746,8.606e-05,69077.0,69041.0,0.5388517]
[1770471545939,0.54909419,69076.0,69043.0,0.014499]
[1770471546248,0.54900813,69074.0,69041.0,0.5388517]
[1770471546448,0.54900813,69073.0,69041.0,0.5388517]
[1770471546643,0.54900813,69073.0,69041.0,0.5533507]
[1770471547045,0.54900813,69085.0,69045.0,0.55008289]
[1770471547241,0.54900813,69085.0,69048.0,0.55008289]
[1770471547451,0.54900813,69084.0,69049.0,0.56458089]
[1770471547647,0.14681945,69090.0,69049.0,0.56458089]
[1770471547648,0.54900813,69082.0,69049.0,0.56458089]
[1770471548251,8.606e-05,69081.0,69049.0,0.56458089]
[1770471548444,0.54900813,69082.0,69049.0,0.56458089]
[1770471549059,0.54900813,69082.0,69052.0,0.14280371]
[1770471549355,0.54900813,69082.0,69049.0,0.56458089]
[1770471550058,0.5289011,69081.0,69049.0,0.56458089]
[1770471550347,0.5289011,69081.0,69052.0,0.014497]
[1770471550545,0.5289011,69079.0,69052.0,0.014497]
[1770471550752,8.606e-05,69078.0,69052.0,0.014497]
[1770471551052,0.5289011,69079.0,69052.0,0.014497]
[1770471551249,0.14681945,69090.0,69049.0,0.001]
[1770471551250,0.5289011,69077.0,69049.0,0.001]
[1770471551453,0.5289011,69075.0,69049.0,0.001]
[1770471551646,0.5289011,69073.0,69049.0,0.001]
[1770471551847,0.14681945,69090.0,69049.0,0.001]
[1770471551848,0.5289011,69071.0,69049.0,0.001]
[1770471552150,0.5289011,69069.0,69029.0,0.57173359]
[1770471552457,0.5289011,69067.0,69033.0,0.57173359]
[1770471552754,0.5289011,69065.0,69035.0,0.14144717]
[1770471552951,0.5289011,69065.0,69033.0,0.57173359]
[1770471553253,0.14681945,69090.0,69028.0,0.15779028]
[1770471553254,0.5289011,69063.0,69028.0,0.15779028]
[1770471553452,0.5289011,69061.0,69028.0,0.15779028]
[1770471553654,0.5289011,69059.0,69028.0,0.15779028]
[1770471553958,0.5289011,69059.0,69033.0,0.001]
[1770471554750,0.5289011,69059.0,69035.0,0.1419815]
[1770471555352,0.5289011,69057.0,69035.0,0.1419815]
[1770471555754,0.5289011,69056.0,69035.0,0.1419815]
[1770471555958,0.5289011,69069.0,69035.0,0.1419815]
[1770471556261,0.5289011,69075.0,69044.0,0.57173359]
[1770471556451,0.5289011,69075.0,69045.0,0.58623159]
[1770471556652,0.5289011,69073.0,69045.0,0.58623159]
[1770471556853,0.5289011,69072.0,69043.0,0.014499]
[1770471557053,8.606e-05,69071.0,69035.0,0.71371509]
[1770471557253,8.606e-05,69070.0,69035.0,0.71371509]
[1770471557456,8.606e-05,69069.0,69048.0,0.56502193]
[1770471557648,0.5289011,69082.0,69048.0,0.56502193]
[1770471557856,0.43087444,69097.0,69028.0,0.14328828]
[1770471557857,0.5289011,69059.0,69028.0,0.14328828]
[1770471558058,0.5289011,69059.0,69020.0,0.57193359]
[1770471558263,0.5289011,69057.0,69020.0,0.57193359]
[1770471558653,0.5289011,69055.0,69020.0,0.57193359]
[1770471558861,0.5289011,69055.0,69020.0,0.57173359]
[1770471559057,0.5289011,69053.0,69020.0,0.57173359]
[1770471559260,8.606e-05,69052.0,69022.0,0.57173359]
[1770471559554,0.52898716,69052.0,69022.0,0.57173359]
[1770471559759,0.14681945,69070.0,69022.0,0.57173359]
[1770471559760,0.5289011,69051.0,69022.0,0.57173359]
[1770471559959,0.5289011,69050.0,69022.0,0.57173359]
[1770471560162,0.5289011,69049.0,69022.0,0.57173359]
[1770471561163,0.5289011,69047.0,69014.0,0.14540323]
[1770471561464,0.5289011,69045.0,69015.0,0.57173359]
[1770471562059,0.5289011,69043.0,69015.0,0.57173359]
[1770471562264,0.5289011,69041.0,69006.0,0.57173359]
[1770471562556,0.5289011,69039.0,69014.0,0.001]
[1770471562759,0.5289011,69039.0,69000.0,0.1477553]
[1770471563062,0.5289011,69037.0,69000.0,0.1477553]
[1770471563258,0.5289011,69035.0,69000.0,0.1477553]
[1770471563459,0.5289011,69033.0,69000.0,0.1477553]
[1770471563759,0.5289011,69031.0,69000.0,0.1477553]
[1770471563966,0.5289011,69029.0,69000.0,0.1477553]
[1770471564560,0.5289011,69027.0,69000.0,0.1477553]
[1770471565065,0.5289011,69026.0,69000.0,0.1477553]
[1770471565466,0.5289011,69026.0,68996.0,0.57173359]
[1770471565662,8.606e-05,69025.0,68996.0,0.57173359]
[1770471565867,8.606e-05,69024.0,69002.0,0.14144229]
[1770471566064,0.5289011,69026.0,69002.0,0.14144229]
[1770471566467,8.606e-05,69025.0,69002.0,0.14144229]
[1770471566769,0.5289011,69026.0,69002.0,0.14144229]
[1770471567657,0.14727296,69040.0,68996.0,0.57173359]
[1770471567658,0.5289011,69024.0,68996.0,0.57173359]
[1770471568060,0.5289011,69022.0,68995.0,0.1444301]
[1770471568460,0.5289011,69020.0,68995.0,0.1444301]
[1770471568665,0.5289011,69018.0,68991.0,0.0001478]
[1770471568867,0.5289011,69016.0,68991.0,0.0001478]
[1770471569162,0.5289011,69014.0,68992.0,0.14226062]
[1770471569667,0.5289011,69013.0,68992.0,0.14226062]
[1770471569867,0.5289011,69038.0,68998.0,0.57173359]
[1770471570068,0.5289011,69036.0,68998.0,0.57173359]
[1770471570263,0.5289011,69034.0,68998.0,0.57173359]
[1770471570468,0.5289011,69032.0,68998.0,0.57173359]
[1770471570765,0.5289011,69030.0,68998.0,0.57173359]
[1770471571066,0.14727296,69040.0,68998.0,0.57173359]
[1770471571067,0.5289011,69028.0,68998.0,0.57173359]
[1770471571262,0.5289011,69026.0,68992.0,0.14226062]
[1770471571463,0.5289011,69024.0,68992.0,0.14226062]
[1770471571665,0.5289011,69022.0,68992.0,0.14226062]
[1770471571968,0.5289011,69020.0,68992.0,0.14226062]
[1770471572268,0.5289011,69018.0,68992.0,0.14226062]
[1770471572469,0.5289011,69016.0,68992.0,0.14226062]
[1770471572665,0.5289011,69014.0,68992.0,0.14226062]
[1770471572868,0.5781474,69040.0,68970.0,0.0002]
[1770471572869,0.5289011,69001.0,68970.0,0.0002]
[1770471573366,0.5289011,69001.0,68958.0,0.14704713]
[1770471573569,0.5289011,68989.0,68948.0,0.0002]
[1770471573773,0.5289011,68989.0,68952.0,0.014518]
[1770471574067,0.5289011,68987.0,68948.0,0.57193359]
[1770471574468,0.5289011,68985.0,68948.0,0.14480127]
[1770471574766,0.5289011,68983.0,68948.0,0.14460127]
[1770471574968,0.5289011,68981.0,68948.0,0.14460127]
[1770471575163,0.14727296,68990.0,68940.0,0.0002]
[1770471575164,0.5289011,68979.0,68940.0,0.0002]
[1770471575667,0.5289011,68977.0,68940.0,0.0002]
[1770471575873,0.5289011,68975.0,68939.0,0.57173359]
[1770471576069,0.5289011,68975.0,68928.0,0.0002]
[1770471576070,0.56259304,68973.0,68929.0,0.14430287]
[1770471576262,0.56259304,68959.0,68930.0,0.53051267]
[1770471576463,0.56259304,68969.0,68930.0,0.53051267]
[1770471576671,0.56259304,68967.0,68929.0,0.14430287]
[1770471576969,0.56259304,68965.0,68930.0,0.53051267]
[1770471577171,0.56259304,68963.0,68929.0,0.14430287]
[1770471577369,0.56259304,68961.0,68929.0,0.14430287]
[1770471577569,0.56259304,68959.0,68929.0,0.14430287]
[1770471577872,0.56259304,68957.0,68929.0,0.14430287]
[1770471578269,0.43087444,69018.0,68929.0,0.53051267]
[1770471578270,0.56259304,68955.0,68929.0,0.53051267]
[1770471579066,0.56259304,68955.0,68929.0,0.67788085]
[1770471579266,0.56259304,68953.0,68929.0,0.67788085]
[1770471579576,0.56259304,68965.0,68929.0,0.67788085]
[1770471579768,0.56259304,68964.0,68929.0,0.67788085]
[1770471579964,0.56259304,68963.0,68929.0,0.67788085]
[1770471580370,0.56259304,68961.0,68927.0,0.0002]
[1770471580674,0.56259304,68959.0,68927.0,0.0002]
[1770471580877,0.00012131,68958.0,68927.0,0.53071267]
[1770471581072,0.00011202,68957.0,68927.0,0.53071267]
[1770471581268,0.56259304,68959.0,68927.0,0.53071267]
[1770471581269,0.00015466,68956.0,68927.0,0.53071267]
[1770471581468,0.56259304,68959.0,68940.0,0.0002]
[1770471582274,0.14727296,68980.0,68940.0,0.0002]
[1770471582275,0.56259304,68957.0,68940.0,0.0002]
[1770471582475,0.56259304,68955.0,68928.0,0.0002]
[1770471582666,0.56259304,68953.0,68928.0,0.0002]
[1770471583475,0.56259304,68953.0,68929.0,0.14640612]
[1770471584776,0.56259304,68952.0,68929.0,0.14640612]
[1770471585172,0.00015775,68951.0,68929.0,0.14640612]
[1770471585377,0.56259304,68952.0,68929.0,0.14640612]
[1770471585577,0.00014432,68951.0,68929.0,0.14640612]
[1770471585781,0.56259304,68949.0,68936.0,0.0002]
[1770471585974,0.00013542,68948.0,68936.0,0.0002]
[1770471586177,0.00012682,68947.0,68936.0,0.0002]
[1770471586379,0.56259304,68949.0,68916.0,0.53051267]
[1770471586576,0.56259304,68945.0,68922.0,0.0002]
[1770471586777,0.56259304,68945.0,68916.0,0.53051267]
[1770471586977,0.56259304,68943.0,68916.0,0.53051267]
[1770471587384,0.56259304,68941.0,68916.0,0.53051267]
[1770471587885,0.56259304,68941.0,68920.0,0.0002]
[1770471588687,0.56259304,68940.0,68920.0,0.0002]
[1770471588887,0.56259304,68940.0,68917.0,0.14308322]
[1770471589390,0.56259304,68939.0,68917.0,0.14308322]
[1770471590079,0.56259304,68948.0,68918.0,0.53051267]
[1770471590284,0.56259304,68948.0,68918.0,0.54503767]
[1770471590480,0.0001558,68947.0,68918.0,0.54503767]
[1770471590673,0.00011871,68946.0,68918.0,0.54503767]
[1770471590872,0.00015277,68945.0,68917.0,0.14308322]
[1770471591082,0.56259304,68939.0,68899.0,0.53051267]
[1770471591286,0.56259304,68939.0,68903.0,0.0002]
[1770471591477,0.56259304,68937.0,68909.0,0.14270766]
[1770471591872,0.56259304,68935.0,68903.0,0.0002]
[1770471592076,0.14727296,68940.0,68903.0,0.0002]
[1770471592077,0.56259304,68933.0,68909.0,0.14706514]
[1770471592282,0.56259304,68931.0,68907.0,0.0002]
[1770471592584,0.56259304,68929.0,68907.0,0.0002]
[1770471593184,0.14727296,68940.0,68902.0,0.0002]
[1770471593185,0.56259304,68927.0,68902.0,0.0002]
[1770471593390,0.56259304,68927.0,68890.0,0.53051267]
[1770471593391,0.56259304,68925.0,68898.0,0.14537102]
[1770471593684,0.56259304,68923.0,68899.0,0.014529]
[1770471593884,0.56259304,68923.0,68899.0,0.53071267]
[1770471594282,0.56259304,68923.0,68899.0,0.53066267]
[1770471594473,0.14727296,68940.0,68905.0,0.0002]
[1770471594474,0.56259304,68921.0,68905.0,0.0002]
[1770471594678,0.56259304,68919.0,68898.0,0.14532102]
[1770471594878,0.56259304,68917.0,68899.0,0.0002]
[1770471595074,0.56259304,68916.0,68899.0,0.0002]
[1770471595284,0.14727296,68940.0,68899.0,0.0002]
[1770471595285,0.56259304,68914.0,68899.0,0.0002]
[1770471595486,0.56259304,68914.0,68898.0,0.00015]
[1770471596685,0.14727296,68940.0,68898.0,0.00015]
[1770471596686,0.56259304,68924.0,68898.0,0.00015]
[1770471596888,0.56259304,68924.0,68898.0,0.14803522]
[1770471597081,0.56259304,68922.0,68898.0,0.14803522]
[1770471597282,0.56259304,68920.0,68898.0,0.00015]
[1770471597484,0.56259304,68918.0,68898.0,0.00015]
[1770471597683,0.56259304,68916.0,68898.0,0.00015]
[1770471598288,0.56259304,68915.0,68875.0,0.53051267]
[1770471598482,0.56259304,68913.0,68890.0,0.0002]
[1770471598680,0.56259304,68913.0,68884.0,0.0002]
[1770471598882,0.56259304,68911.0,68884.0,0.0002]
[1770471599082,0.56259304,68909.0,68884.0,0.0002]
[1770471599290,0.56259304,68908.0,68881.0,0.14750272]
[1770471599485,0.00011716,68907.0,68891.0,0.0002]
[1770471599789,0.56259304,68906.0,68891.0,0.0002]
[1770471600094,0.56259304,68919.0,68888.0,0.014531]
[1770471600388,0.00014088,68905.0,68890.0,0.53051267]
[1770471600594,0.56259304,68919.0,68893.0,0.53051267]
[1770471600780,0.56259304,68919.0,68895.0,0.01453]
[1770471600985,0.56259304,68919.0,68893.0,0.53051267]
[1770471601182,0.56259304,68919.0,68894.0,0.0002]
[1770471601585,0.56259304,68917.0,68894.0,0.0002]
[1770471601786,0.14727296,68940.0,68894.0,0.0002]
[1770471601787,0.56259304,68915.0,68894.0,0.0002]
[1770471602088,0.56259304,68913.0,68894.0,0.0002]
[1770471602295,0.56259304,68911.0,68887.0,0.0002]
[1770471602590,0.56259304,68910.0,68887.0,0.0002]
[1770471602886,0.56259304,68909.0,68887.0,0.0002]
[1770471603087,9.819e-05,68908.0,68887.0,0.0002]
[1770471603295,9.819e-05,68907.0,68891.0,0.53051267]
[1770471603489,9.819e-05,68906.0,68903.0,0.0002]
[1770471603685,0.56259304,68923.0,68903.0,0.0002]
[1770471604693,0.56259304,68943.0,68902.0,0.53051267]
[1770471604892,0.56259304,68943.0,68894.0,0.0002]
[1770471604893,0.56259304,68943.0,68905.0,0.54504067]
[1770471605391,0.56259304,68943.0,68907.0,0.014527]
[1770471605587,0.56259304,68943.0,68905.0,0.53051267]
[1770471605788,0.56359304,68943.0,68908.0,0.0002]
[1770471606189,0.56359304,68943.0,68910.0,0.57919823]
[1770471606698,0.56359304,68943.0,68884.0,0.1448]
[1770471606699,0.56494881,68939.0,68892.0,0.57919823]
[1770471606889,0.56494881,68939.0,68888.0,0.014531]
[1770471607088,0.56494881,68939.0,68885.0,0.59373023]
[1770471607386,0.56494881,68938.0,68898.0,0.0002]
[1770471607692,0.56494881,68919.0,68881.0,0.14750272]
[1770471608195,0.56494881,68919.0,68874.0,0.14312894]
[1770471608390,0.56494881,68899.0,68868.0,0.57919823]
[1770471608592,0.56494881,68899.0,68872.0,0.57919823]
[1770471608793,0.56494881,68919.0,68879.0,0.59373123]
[1770471608990,0.56494881,68919.0,68880.0,0.0002]
[1770471610187,0.56494881,68919.0,68878.0,0.57919823]
[1770471610388,0.56494881,68919.0,68887.0,0.014532]
[1770471610682,0.53022995,68929.0,68902.0,0.014529]
[1770471610985,0.53022995,68929.0,68901.0,0.014529]
[1770471611185,0.53022995,68929.0,68877.0,0.14794699]
[1770471611186,0.53022995,68929.0,68886.0,0.53770993]
[1770471611401,0.53022995,68929.0,68887.0,0.014532]
[1770471611600,0.53022995,68929.0,68889.0,0.014531]
[1770471611788,0.53022995,68929.0,68886.0,0.53770993]
[1770471611993,0.53022995,68929.0,68889.0,0.55224093]
[1770471612290,0.53022995,68929.0,68891.0,0.014531]
[1770471613200,0.53022995,68929.0,68880.0,0.014533]
[1770471613497,0.53022995,68929.0,68888.0,0.014531]
[1770471613801,0.53022995,68929.0,68890.0,0.014531]
[1770471613990,0.53022995,68929.0,68887.0,0.014532]
[1770471614192,0.53022995,68929.0,68889.0,0.014531]
[1770471614497,0.53022995,68929.0,68891.0,0.014531]
[1770471614689,0.53022995,68929.0,68885.0,0.53770993]
[1770471614891,0.53022995,68919.0,68879.0,0.014533]
[1770471615092,0.53022995,68919.0,68882.0,0.014533]
[1770471615502,0.53022995,68919.0,68884.0,0.55224193]
[1770471615892,0.53022995,68919.0,68886.0,0.55224193]
[1770471617496,0.53022995,68919.0,68886.0,0.53770993]
[1770471618186,0.53022995,68919.0,68890.0,0.014531]
[1770471618596,0.53022995,68919.0,68886.0,0.53770993]
[1770471618898,0.53022995,68919.0,68883.0,0.0002]
[1770471619097,0.53022995,68919.0,68879.0,0.014533]
[1770471619488,0.53022995,68919.0,68877.0,0.16248099]
[1770471620497,0.53022995,68918.0,68879.0,0.014533]
[1770471620703,0.53022995,68918.0,68889.0,0.53770993]
[1770471621098,0.53022995,68918.0,68890.0,0.55224093]
[1770471621294,0.53022995,68918.0,68890.0,0.53770993]
[1770471622204,0.53022995,68918.0,68884.0,0.0002]
[1770471622594,0.43087444,68916.0,68877.0,0.14794699]
[1770471622897,0.53022995,68910.0,68877.0,0.14794699]
[1770471623098,0.53022995,68910.0,68870.0,0.14335201]
[1770471623403,0.53022995,68904.0,68871.0,0.53770993]
[1770471623605,0.53022995,68936.0,68904.0,0.53022969]
[1770471623799,0.53022995,68956.0,68921.0,0.014524]
[1770471624098,0.53022995,68956.0,68924.0,0.014524]
[1770471624289,0.14727296,68980.0,68928.0,0.014523]
[1770471624290,0.53051995,68955.0,68928.0,0.014523]
[1770471624494,0.53022995,68955.0,68924.0,0.014524]
[1770471624799,0.53022995,68953.0,68922.0,0.014524]
[1770471625096,0.53022995,68953.0,68927.0,0.014523]
[1770471625301,0.53051995,68952.0,68924.0,0.014524]
[1770471625501,0.53022995,68952.0,68921.0,0.53022969]
[1770471625698,0.00029,68951.0,68924.0,0.53770993]
[1770471625899,0.00029,68950.0,68927.0,0.014523]
[1770471626091,0.00029,68951.0,68927.0,0.014523]
[1770471626292,0.53022995,68979.0,68927.0,0.53770993]
[1770471626494,0.52722995,68988.0,68947.0,0.14730281]
[1770471626694,0.52722995,68988.0,68954.0,0.14817366]
[1770471626889,0.52722995,68988.0,68929.0,0.53770993]
[1770471627097,0.52722995,68988.0,68936.0,0.014521]
[1770471627296,0.52722995,68988.0,68937.0,0.014521]
[1770471627999,0.52722995,68988.0,68942.0,0.14854817]
[1770471628798,0.52722995,68988.0,68936.0,0.014521]
[1770471628995,0.52722995,68988.0,68943.0,0.53770993]
[1770471629201,0.52722995,68988.0,68947.0,0.014519]
[1770471629599,0.52722995,68988.0,68943.0,0.53770993]
[1770471630106,0.52722995,68988.0,68942.0,0.14772659]
[1770471630308,0.52722995,68988.0,68943.0,0.01452]
[1770471630809,0.52722995,68988.0,68942.0,0.14758998]
[1770471631307,0.52722995,68988.0,68942.0,0.16210998]
[1770471631506,0.52722995,68988.0,68945.0,0.014519]
[1770471631706,0.52822995,68988.0,68943.0,0.53770993]
[1770471631901,0.52822995,68988.0,68948.0,0.014519]
[1770471632498,0.52822995,68988.0,68943.0,0.53770993]
[1770471633102,0.52822995,68988.0,68943.0,0.55222993]
[1770471633301,0.52822995,68988.0,68942.0,0.14758998]
[1770471633505,0.52722995,68988.0,68942.0,0.16210998]
[1770471634210,0.52722995,68988.0,68945.0,0.014519]
[1770471634407,0.52722995,68988.0,68948.0,0.014519]
[1770471634609,0.52722995,68988.0,68951.0,0.014518]
[1770471634911,0.52722995,68988.0,68949.0,0.014519]
[1770471635210,0.52822995,68988.0,68949.0,0.014519]
[1770471635802,0.52822995,68988.0,68950.0,0.014518]
[1770471636302,0.52822995,68988.0,68953.0,0.014518]
[1770471636502,0.52822995,68988.0,68942.0,0.14758998]
[1770471636704,0.52722995,68988.0,68946.0,0.014519]
[1770471638517,0.52722995,68988.0,68966.0,0.014515]
[1770471638702,0.52722995,68988.0,68962.0,0.014516]
[1770471638903,0.52722995,68988.0,68955.0,0.53599323]
[1770471639108,0.52722995,68988.0,68961.0,0.014516]
[1770471639304,0.52722995,68988.0,68964.0,0.014515]
[1770471639710,0.23858383,68988.0,68964.0,0.014515]
[1770471639916,0.23858383,68988.0,68959.0,0.53599323]
[1770471640211,0.14758477,69030.0,68978.0,0.014512]
[1770471640212,0.54475289,69029.0,68978.0,0.014512]
[1770471640421,0.54475289,69029.0,68979.0,0.53599323]
[1770471640813,0.54475289,69029.0,68993.0,0.014509]
[1770471641012,0.54475289,69029.0,68975.0,0.55050623]
[1770471641206,0.54475289,69029.0,68975.0,0.53599323]
[1770471641821,0.54475289,69029.0,68982.0,0.014512]
[1770471642313,0.54475289,69029.0,68985.0,0.014511]
[1770471642513,0.54475289,69029.0,68960.0,0.16210077]
[1770471642514,0.54475289,69029.0,68976.0,0.014513]
[1770471642722,0.54475289,69029.0,68961.0,0.55050923]
[1770471642912,0.54475289,69029.0,68973.0,0.014513]
[1770471643215,0.54575289,69029.0,68976.0,0.014513]
[1770471643417,0.54575289,69029.0,68967.0,0.53599323]
[1770471643418,0.54575289,69029.0,68972.0,0.014514]
[1770471643612,0.54575289,69029.0,68972.0,0.53599323]
[1770471643922,0.54475289,69029.0,68972.0,0.53599323]
[1770471644120,0.54575289,69029.0,68972.0,0.53599323]
[1770471644919,0.54475289,69029.0,68977.0,0.014513]
[1770471645125,0.54575289,69029.0,68977.0,0.014513]
[1770471645317,0.54575289,69029.0,68980.0,0.014512]
[1770471645820,0.54575289,69029.0,68972.0,0.53599323]
[1770471646019,0.54575289,69029.0,68975.0,0.014513]
[1770471646222,0.54475289,69029.0,68975.0,0.014513]
[1770471646411,0.54575289,69029.0,68975.0,0.014513]
[1770471646817,0.54575289,69029.0,68978.0,0.014513]
[1770471647117,0.54475289,69029.0,68978.0,0.014513]
[1770471647317,0.54575289,69029.0,68978.0,0.014513]
[1770471647915,0.54575289,69029.0,68980.0,0.014512]
[1770471649316,0.54575289,69029.0,68977.0,0.014513]
[1770471649619,0.54575289,69029.0,68966.0,0.014515]
[1770471650622,0.54575289,69029.0,68968.0,0.014515]
[1770471650824,0.54575289,69029.0,68964.0,0.014515]
[1770471651918,0.54575289,69029.0,68964.0,0.55050823]